Workbook

Sheet S4G_Homework 4
C3: Name :
C6: Teacher :
B9: General Official Homework 4 Created by Mr Lafferty St. Ninian's High School
D11: This homework covers topics | AC11: Score
D13: Basic Number Operations | T13: Algebraic Brackets | AF13: 20
D15: Distance Speed Time | T15: Mean from Frequency Table
D17: Negative Numbers | T17: Percentages & Money
D20: Teacher Comments :
D28: Pupil's Comment :
B36: 1. | C36: Carry out the following instructions. | O36: ( NON - CALCULATOR QUESTION )
B38: (a) | D38: =ROUND(RAND()*(950-730)+730,1) -> 761.4 | G38: - | H38: =ROUND(RAND()*(550-330)+330,1) -> 411.5 | L38: Working : | AJ38: =I40 -> 349.9
C40: Answer | I40: =D38-H38 -> 349.9
B42: (b) | D42: =ROUND(RAND()*(50-15)+15,1) -> 27.7 | G42: x | H42: =ROUND(RAND()*(9-3)+3,0)*10 -> 80 | L42: Working : | AJ42: =I44 -> 2216
C44: Answer | I44: =D42*H42 -> 2216
B46: (c) | D46: =ROUND(RAND()*(98-32)+32,1)*H46 -> 414.6 | G46: ÷ | H46: =ROUND(RAND()*(9-4)+4,0) -> 6 | L46: Working : | AJ46: =I48 -> 69.1
C48: Answer : | I48: =D46/H46 -> 69.1
B50: (d) | D50: =ROUND(RAND()*(9-2)+2,0)*10 -> 90 | F50: % of | H50: =ROUND(RAND()*(9-2)+2,1)*10 -> 88 | L50: Working : | AJ50: =I53 -> 79.2
C53: Answer : | I53: =H50*D50/100 -> 79.2 | AC53: ( 5 marks )
B56: 2. | C56: Michael drives from Dumfries to Manchester. | AJ56: =ROUND(RAND()*(9-2)+2,0)*6 -> 48
AJ57: =ROUND(RAND()*(39-28)+18,0) -> 18
C58: A | D58: =AJ58 -> 14.4 | F58: mile part of his journey is affected by roadworks. | AJ58: =AJ56*AJ57/60 -> 14.4
C60: It takes him | G60: =AJ56 -> 48 | I60: minutes to drive this part of his journey.
C62: Calculate his average speed for this part of his journey.
C64: Give your answer in miles per hour.
T65: Answer | Z65: =AJ57 -> 18 | AC65: ( 3 marks ) | AJ65: =Z65 -> 18
C67: Working :
B76: 3. | C76: In July the average temperature in Anchorage, Alaska is | T76: =ROUND(RAND()*(15-7)+7,0) -> 9 | V76: oC | AC76: ( 2 marks )
C77: By January the average temperature has fallen by | R77: =ROUND(RAND()*(35-26)+26,0) -> 28 | T77: oC
C78: What is the average temperature in | O78: Working :
C79: Anchorage in January? | AJ79: =I80 -> -19
B80: Answer : | I80: =ROUND(T76-R77,0) -> -19
B83: 4. | C83: Simplify | P83: Working :
B85: =ROUND(RAND()*(9-2)+2,0) -> 3 | C85: ( | D85: =CHAR(RAND()*(122-97)+97) -> f | E85: + | F85: =ROUND(RAND()*(9-2)+2,0) -> 8 | G85: ) | H85: + | I85: =ROUND(RAND()*(9-2)+2,0) -> 9 | J85: ( | K85: =ROUND(RAND()*(9-2)+2,0) -> 3 | L85: - | M85: =ROUND(RAND()*(9-2)+2,0) -> 3 | N85: =D85 -> f | O85: )
C86: =ROUND(RAND()*(9-(1))+(1),0) -> 9
B87: Answer : | AK87: =B85+(I85*-M85) -> -24 | AL87: =N85 -> f | AM87: + | AN87: =F85*B85+I85*K85 -> 51
AC89: ( 3 marks )
B92: 5. | C92: Last week Lewis asked | K92: =AJ104 -> 46 | L92: students to record how many hours they spent doing homework. | AP92: =ROUND(RAND()*(1-0)+0,0) -> 0
C94: The results are shown below.
C96: Homework hours | I96: Frequency | O96: Homework hours x frequency
C97: =ROUND(RAND()*(1-0)+0,0) -> 1 | I97: =AJ97 -> 7 | AJ97: =ROUND(RAND()*(20-5)+5,0) -> 7 | AK97: =AJ97*C97 -> 7
C98: =C97+1 -> 2 | I98: =AJ98 -> 7 | AJ98: =ROUND(RAND()*(20-5)+5,0) -> 7 | AK98: =AJ98*C98 -> 14
C99: =C98+1 -> 3 | I99: 6 | AJ99: 6 | AK99: 18
C100: 4 | I100: 8 | AJ100: 8 | AK100: 32
C101: 5 | I101: 6 | AJ101: =ROUND(RAND()*(7-2)+2,0) -> 6 | AK101: 30
C102: 6 | I102: 7 | AJ102: =ROUND(RAND()*(7-2)+2,0) -> 7 | AK102: 42
C103: 7 | I103: 5 | AJ103: 5 | AK103: 35
C104: Totals = | I104: 46 | AJ104: =SUM(AJ97:AJ103) -> 46 | AK104: =SUM(AK97:AL103) -> 178
C106: Complete the above table and find the mean time spent on homework last week.
C108: Working :
C111: Round your answer to 1 decimal place. | Q111: mean = | Y111: =ROUND(AK104/AJ104,1) -> 3.9 | AJ111: =Y111 -> 3.9
AC113: ( 4 marks )
B116: 6. | C116: Nicole has | G116: =ROUND(RAND()*(90-32)+32,0)*100 -> 7800 | J116: in her Clydeside Bank account.
V117: Working :
C118: Clydeside Bank pays interest at | M118: =ROUND(RAND()*(2-1)+1,1) -> 1.8 | O118: % per annum. | AN118: =M118/100*G116 -> 140.4
AN119: =ROUND(SQRT((C122*C122)+(K119-I125)*(K119-I125)),1) -> 0
C120: Highland Bank pays interest at | M120: =M118+ROUND(RAND()*(2-1)+1,1) -> 3 | O120: % per annum. | AN120: =M120/100*G116 -> 234
C123: How much more money would Nicole get in interest
C124: if she moved her | I124: =G116 -> 7800 | L124: to the Highland Bank
C125: for one year?
S128: Answer = | AB128: =AN120-AN118 -> 93.6 | AN128: =AB128 -> 93.6
AC129: ( 3 marks )
AB131: Total marks 20
